[Event "Polish Ekstraliga 2024"]
[Site "Walbrzych"]
[Date "2024.10.08"]
[Round "2.14"]
[White "Krasenkow, Michal"]
[Black "Donchenko, Alexander"]
[Result "1-0"]
[ECO "E14"]
[WhiteElo "2490"]
[BlackElo "2626"]
[Annotator "TA"]
[PlyCount "61"]
[EventDate "2024.10.05"]
[EventType "team-tourn"]
[EventCountry "POL"]
[SourceTitle "playchess.com"]
[Source "ChessBase"]
[SourceQuality "1"]
[WhiteTeam "Gorzow Wlkp"]
[BlackTeam "Raciborz"]
[TimeControl "40/5400+30:1800+30"]

{[%evp 18,61,33,0,25,0,23,0,-14,-9,-12,-179,51,48,37,29,79,76,186,185,177,182,184,188,185,181,341,352,352,0,322,319,1547,1558,29988,29989,29989,1508,29990,785,731,729,29991,29992,29993,29994]} 1. d4 {[%emt 0:00:02]} Nf6 {[%emt 0:00:06]} 2. c4 {[%emt 0:00:06]} e6 {[%emt 0:00:05]} 3. Nf3 {[%emt 0:00:03]} b6 {[%emt 0:00:09]} 4. e3 {[%emt 0:02:43]} Bb7 {[%emt 0:01:58]} 5. Bd3 {[%emt 0:00:25]} Be7 {[%emt 0:05:06]} 6. O-O {[%emt 0:00:30]} O-O {[%emt 0:02:01]} 7. Nc3 {[%emt 0:00:06]} d5 {[%emt 0:00:31]} 8. b3 {[%emt 0:00:07]} Nbd7 {[%emt 0:02:03]} 9. Bb2 {[%emt 0:00:33]} c5 {[%emt 0:04:09]} 10. Rc1 {[%emt 0:02:04]} Rc8 {[%emt 0:08:07]} 11. Rc2 {[%emt 0:04:27]} Qc7 {[%emt 0:06:59]} 12. Nb5 Qb8 {[%emt 0:00:30] The position is equal.} 13. Ne5 {[%emt 0:15:27]} a6 {[%emt 0:00:30]} 14. cxd5 (14. Nc3 $11 {and White has nothing to worry.}) 14... exd5 $2 {[%emt 0:07:49]} (14... axb5 $19 15. Nxd7 Nxd7 16. dxe6 fxe6 17. dxc5 Nxc5 (17... bxc5 18. Qh5 $15) (17... Rxc5 $2 18. Bxb5 Rxc2 19. Qxc2 $17) 18. Bxb5 Rcd8) 15. Nxd7 {[%emt 0:01:00]} (15. Bf5 {with more complications.} Rfd8 16. Nxd7 Nxd7 17. dxc5 Rxc5 18. Nd4) 15... Nxd7 {[%emt 0:00:06]} 16. dxc5 {[%emt 0:00:26]} axb5 {[%emt 0:17:31]} (16... Nxc5 $11 17. Nd4 Nxd3 18. Qxd3 Rxc2 19. Qxc2 Rc8) 17. Bxg7 $1 $16 {[%emt 0:01:16] Qg4 would now be deadly. White is more active.} Kxg7 {[%emt 0:07:35]} (17... Nf6 $16 {is a better defense.} 18. Bxf8 Kxf8) 18. Qg4+ $18 {[%emt 0:00:15]} Kh8 {[%emt 0:00:04]} 19. Qxd7 $40 {[%emt 0:00:21][%mdl 128] Black is in trouble.} Bxc5 {[%emt 0:00:25][%cal Of7f5]} 20. Qf5 $1 {[%emt 0:02:27]} (20. Qxb5 $2 Bc6 21. Qa6 Qe5 22. Rxc5 bxc5 $19) 20... Kg7 {[%emt 0:00:05]} 21. b4 $1 {[%emt 0:15:02][%mdl 1024] Strongly threatening Rfc1. White has strong compensation.} (21. Bxb5 $2 Qd6 22. Bd3 Qh6 $17) (21. Qxh7+ Kf6 $11) 21... Bd6 $2 {[%emt 0:01:01]} (21... Rg8) 22. Qg5+ $1 {[%emt 0:02:24]} (22. Bxb5 Bxh2+ (22... Bxb4 $2 23. Qg4+ Kh8 24. Rxc8 $18) 23. Kh1 Qd6 24. Rxc8 Rxc8 $17 (24... Bxc8 25. Qg5+ Kh8 26. g3 $17)) (22. Qxh7+ Kf6 $11) 22... Kh8 {[%emt 0:00:01] Threatens to win with ...f5.} 23. Qf6+ {[%emt 0:00:36]} Kg8 {[%emt 0:00:02] [#]} 24. Bf5 $1 {[%emt 0:03:06] Threatening mate with Qg5+.} (24. Qh6 $2 f5 25. Rcc1 Rxc1 (25... Bxb4 $2 26. Qe6+ Rf7 27. Bxf5 $19) 26. Rxc1 d4 (26... Bxb4 $2 27. Qxb6 Bd6 28. Qxb5 $17) 27. Bxb5 Be5 $19 (27... Bxb4 28. Qe6+ Kh8 29. Qxb6 $17)) 24... Rfd8 $2 {[%emt 0:17:26] [#]} (24... Bxh2+ 25. Kh1 Qe5 26. Qg5+ Kh8) 25. Qh6 $1 {[%emt 0:11:58]} ({Not} 25. Bxc8 Rxc8 26. Rxc8+ Bxc8 $14) 25... Rc7 {[%emt 0:02:21]} 26. Bxh7+ {[%emt 0:00:14]} Kh8 {[%emt 0:00:03]} 27. Bf5+ {[%emt 0:00:59]} Kg8 {[%emt 0:00:02]} 28. Rfc1 {[%emt 0:02:37]} (28. f4 $142 Bc8 29. Bh7+ (29. Qg5+ Kf8 $18) 29... Kh8 30. Bd3+ Kg8 31. Rf3 (31. Qg5+ Kf8 $18) 31... Bf5 32. Bxf5 Bxf4 33. Bh7+ Kh8 34. Qf6+ (34. exf4 Rd6 35. Bg6+ Kg8 36. Rh3 fxg6 37. Qh8+ Kf7 38. Rh7+ Ke6 39. Qe5#) 34... Kxh7 35. Rh3+ Bh6 36. Rxh6+ Kg8 37. Rh8#) 28... Rcd7 {[%emt 0:00:31]} 29. f4 {[%emt 0:04:29] White wants to mate with Rf1.} Qa8 {[%emt 0:09:32]} 30. Rf1 {[%emt 0:02:30]} d4 {[%emt 0:01:13] [#]} 31. Rf3 $1 {[%emt 0:00:38][%mdl 512] Weighted Error Value: White=0.18 (very precise) /Black=1.26.  Loses game:     	White=1     	Black=1      Missed win:     	---       	Black=1      Mistake:       	---       	Black=4      Inaccurate:     	White=1     	Black=1      OK:         	White=4     	Black=3      Best:        	White=1     	Black=1      Strong:       	White=6     	---} 1-0

[Event "Polish Ekstraliga 2024"]
[Site "Walbrzych"]
[Date "2024.10.08"]
[Round "2.15"]
[White "Huschenbeth, Niclas"]
[Black "Dzida, Kamil"]
[Result "1-0"]
[ECO "B96"]
[WhiteElo "2600"]
[BlackElo "2384"]
[Annotator "TA"]
[PlyCount "30"]
[EventDate "2024.10.05"]
[EventType "team-tourn"]
[EventCountry "POL"]
[SourceTitle "playchess.com"]
[Source "ChessBase"]
[SourceQuality "1"]
[WhiteTeam "Raciborz"]
[BlackTeam "Gorzow Wlkp"]
[TimeControl "40/5400+30:1800+30"]

{[%evp 16,30,24,6,12,14,27,-12,0,-10,-11,-11,-12,-10,-7,-15,-25]} 1. e4 {[%emt 0:00:11]} c5 {[%emt 0:00:12]} 2. Nf3 {[%emt 0:00:06]} d6 {[%emt 0:00:04]} 3. d4 {[%emt 0:00:04]} cxd4 {[%emt 0:00:08]} 4. Nxd4 {[%emt 0:00:05]} Nf6 {[%emt 0:00:07]} 5. Nc3 {[%emt 0:00:07]} a6 {[%emt 0:00:05]} 6. Bg5 {[%emt 0:00:08]} e6 {[%emt 0:00:53]} 7. f4 {[%emt 0:00:10]} h6 {[%emt 0:00:05]} 8. Bh4 {[%emt 0:00:16]} Qb6 {[%emt 0:00:11]} 9. a3 {[%emt 0:02:54]} Nbd7 {[%emt 0:02:34]} (9... Qxb2 $2 10. Na4 $18) 10. Bf2 {[%emt 0:02:33][%cal Od4e6] [#] Black must now prevent Nxe6!} Qc7 {[%emt 0:00:07]} (10... Qxb2 $2 {is the wrong capture.} 11. Na4 $18) 11. Qf3 {[%emt 0:03:18]} b5 {[%emt 0:01:29] The position is equal.} 12. O-O-O {[%emt 0:01:50]} Bb7 {[%emt 0:01:15]} 13. g4 {[%emt 0:12:42]} Nc5 {[%emt 0:00:46]} 14. Bd3 {[%emt 0:06:36]} d5 {[%emt 0:00:57] [#] ...b4 would now be deadly.} 15. e5 {[%emt 0:01:41]} Nfe4 {[%emt 0:00:07][%mdl 32768] A rather calm draw.   Weighted Error Value: White=0.06 (flawless) /Black=0.00 (flawless) .  Inaccurate:     	White=1     	---        OK:         	White=1     	Black=4      Best:        	White=1     	---       . Loss on time!?} 1-0

[Event "Polish Ekstraliga 2024"]
[Site "Walbrzych"]
[Date "2024.10.08"]
[Round "2.16"]
[White "Koziorowicz, Michal"]
[Black "Krzyzanowski, Marcin"]
[Result "0-1"]
[ECO "C44"]
[WhiteElo "2289"]
[BlackElo "2509"]
[Annotator "TA"]
[PlyCount "118"]
[EventDate "2024.10.05"]
[EventType "team-tourn"]
[EventCountry "POL"]
[SourceTitle "playchess.com"]
[Source "ChessBase"]
[SourceQuality "1"]
[WhiteTeam "Gorzow Wlkp"]
[BlackTeam "Raciborz"]
[TimeControl "40/5400+30:1800+30"]

{[%evp 10,118,18,16,39,33,0,-116,-121,-120,-126,-129,-82,-85,-79,-108,-115,-111,-107,-171,-183,-179,-150,-203,-197,-201,-178,-406,-404,-406,-406,-414,-413,-387,-260,-264,-260,-234,-259,-281,-253,-280,-283,-278,-275,-422,-269,-428,-225,-268,-262,-262,-224,-241,-195,-195,-195,-195,-202,-214,-232,-233,-233,-202,-174,-254,-254,-254,-254,-254,-254,-254,-254,-279,-156,-399,-399,-399,-399,-399,-399,-399,-399,-399,-399,-399,-399,-572,-567,-538,-516,-2875,-1920,-3154,-2495,-29964,-29958,-29968,-29970,-29969,-29969,-29981,-29972,-29964,-29969,-29983,-29984,-29985,-29986,-29986,-29987]} 1. e4 {[%emt 0:00:05]} e5 {[%emt 0:00:06][%cal Be7e5,Be5d4][%mdl 32]} 2. Nf3 {[%emt 0:00:31]} Nc6 {[%emt 0:00:05]} 3. Bc4 {[%emt 0:00:13]} Nf6 {[%emt 0:00:17]} 4. d4 {[%emt 0:00:45]} exd4 {[%emt 0:00:07]} 5. e5 {[%emt 0:00:04]} Ng4 {[%emt 0:00:16]} 6. O-O {[%emt 0:11:15] Threatens to win with h3.} Be7 {[%emt 0:00:29]} (6... Ngxe5 $2 7. Nxe5 Nxe5 8. Re1 $18) 7. Re1 {[%emt 0:01:11][%cal Oh2h3]} d6 $1 {[%emt 0:00:43]} 8. e6 {[%emt 0:04:42]} (8. exd6 $11 cxd6 9. Bg5 (9. Nxd4 d5 $11)) 8... fxe6 $1 $17 {Black is better.} 9. Nxd4 {[%emt 0:12:45]} Nxd4 {[%emt 0:37:48]} 10. Qxg4 {[%emt 0:16:31]} Bf6 {[%emt 0:10:56]} ({Black should try} 10... Nxc2 11. Rxe6 (11. Qxg7 $2 Bf6 $19) 11... Bxe6 (11... Nxa1 12. Qh5+ Kd7 13. Qh3 $11) 12. Bxe6 Bf6 (12... Nxa1 $2 13. Qh5+ g6 14. Qb5+ c6 15. Qxb7 $19) 13. Qa4+ Ke7 14. Qxc2 Kxe6) 11. Na3 {[%emt 0:26:54]} (11. c3 $2 Nc2 12. Qh5+ g6 $19) 11... O-O {[%emt 0:11:41]} 12. Be3 {[%emt 0:01:38] [#]} Kh8 $1 {[%emt 0:02:29]} 13. Bxd4 {[%emt 0:01:47]} e5 {[%emt 0:00:09]} 14. Qe4 {[%emt 0:01:56]} (14. Be6 $17 exd4 15. Bxc8 Qxc8 16. Qxc8 Raxc8 (16... Rfxc8 17. Rad1 $17) 17. Rad1) 14... exd4 $19 {[%emt 0:00:08]} 15. Nb5 {[%emt 0:03:19]} Be5 {[%emt 0:05:40] ...c6 would now be deadly.} 16. g3 {[%emt 0:00:11]} (16. Bd3 $17 g6 17. Na3) 16... Bf5 {[%emt 0:03:33]} 17. Qxb7 {[%emt 0:00:34]} Bxc2 {[%emt 0:10:53] ...Rb8 is the strong threat.} 18. Qd5 $2 {[%emt 0:06:12] [#]} (18. f4 Bf6 19. Nxc7) 18... c6 $1 {[%emt 0:01:04][%mdl 512]} 19. Qxc6 {[%emt 0:00:01]} Rc8 {[%emt 0:00:04]} (19... d3 20. Qe4 Qb6 (20... Bxb2 $2 21. Rad1 $19) 21. Re3 Bxb2 22. Rf1) 20. Qd5 {[%emt 0:00:08]} Rc5 {[%emt 0:02:03]} 21. Rxe5 {[%emt 0:03:05]} Rxd5 {[%emt 0:01:35]} 22. Rxd5 {[%emt 0:00:04]} Qf6 {[%emt 0:00:09]} 23. Rf1 {[%emt 0:00:55] [#]} Be4 $1 {[%emt 0:02:25] ( -> ...Qf3)} 24. Rxd4 {[%emt 0:00:34]} Qf3 {[%emt 0:00:06][%csl Ge4][%cal Rf3h1]} 25. Rxe4 {[%emt 0:00:05]} Qxe4 {[%emt 0:00:02]} 26. Nxd6 {[%emt 0:01:20]} Qf3 {[%emt 0:01:13]} 27. h4 {[%emt 0:00:51]} (27. Bb3 $142) 27... g6 {[%emt 0:01:40]} ({But not} 27... Qf6 28. Nb5 $19) 28. b3 {[%emt 0:00:08]} (28. Nb5 {was called for.}) 28... a5 {[%emt 0:01:52]} (28... a6 $142 29. a4 Rf6) 29. Nb5 {[%emt 0:01:19]} Rd8 {[%emt 0:01:18] Inhibits Nd4. aiming for ...Rd7.} 30. Nc7 {[%emt 0:00:52]} Rd2 {[%emt 0:00:21]} 31. a4 {[%emt 0:00:02]} h6 {[%emt 0:00:45]} 32. Ne6 {[%emt 0:00:24] Prevents g5.} Kh7 {[%emt 0:01:03]} 33. Nf4 {[%emt 0:00:53]} g5 {[%emt 0:03:53]} 34. Ng2 {[%emt 0:00:41]} Kg7 {[%emt 0:00:39]} 35. Ne1 {[%emt 0:00:42]} Qf6 {[%emt 0:01:19]} 36. Ng2 {[%emt 0:00:13]} Kf8 {[%emt 0:00:19]} 37. hxg5 {[%emt 0:00:15]} (37. Bb5 $142) 37... hxg5 {[%emt 0:00:06]} 38. Ne3 {[%emt 0:00:05]} Qf3 {[%emt 0:00:32]} 39. Be6 {[%emt 0:00:35]} Rd6 {[%emt 0:01:20]} 40. Bh3 {[%emt 0:00:00]} Qb7 {[%emt 0:00:00]} 41. Rc1 {[%emt 0:09:24]} Rd3 {[%emt 0:07:11]} ({Black should play} 41... Qxb3 $19 42. Rc8+ Kf7 43. Rc7+ Ke8 44. Rc8+ Rd8) 42. Rc5 $2 {[%emt 0:02:27] [#] Loses the game.} (42. Be6 $17) 42... Rxe3 $1 {[%emt 0:05:42][%mdl 512]} 43. fxe3 {[%emt 0:01:31]} Qxb3 {[%emt 0:00:06][%mdl 4096] Endgame. KQ-KRB} 44. Kf2 {[%emt 0:02:31]} Qxa4 {[%emt 0:02:03]} 45. Rxg5 {[%emt 0:01:09]} Qc2+ {[%emt 0:00:22]} 46. Kf3 {[%emt 0:07:05]} Qc6+ {[%emt 0:02:44]} (46... a4 $2 47. Be6 $19) 47. Kf4 {[%emt 0:03:15]} Qd6+ {[%emt 0:01:14]} 48. Ke4 {[%emt 0:00:51]} (48. Kg4 $142 Qe6+ (48... a4 $2 49. Bg2 $19) 49. Rf5+ Kg7 50. Kf3 Qc6+ 51. e4) 48... a4 {[%emt 0:00:45]} 49. Re5 {[%emt 0:01:25]} Kg7 {[%emt 0:02:28]} 50. Rg5+ {[%emt 0:00:10]} (50. Bf1 $142 Qb4+ 51. Kd5) 50... Kf6 {[%emt 0:01:42]} 51. Rf5+ {[%emt 0:00:06]} Kg6 {[%emt 0:00:07][%cal Oa4a3] Hoping for ...a3!} 52. Re5 {[%emt 0:02:04]} Qb4+ {[%emt 0:00:08] Black mates.} 53. Kf3 {[%emt 0:06:27]} a3 {[%emt 0:00:19]} 54. Re6+ {[%emt 0:00:08]} Kg7 {[%emt 0:00:46]} 55. Bf1 {[%emt 0:01:04]} a2 {[%emt 0:00:17]} 56. Ra6 {[%emt 0:00:05]} Qb7+ {[%emt 0:00:04]} 57. Kf4 {[%emt 0:00:51]} Qf7+ {[%emt 0:02:12]} 58. Kg5 {[%emt 0:01:23]} Qxf1 {[%emt 0:00:10]} 59. Ra7+ {[%emt 0:00:03] [#]} Qf7 $3 {[%emt 0:00:06][%mdl 512] Weighted Error Value: White=0.45/Black=0.16 (very precise) .  Loses game:     	White=1     	---        Mistake:       	White=9     	Black=3      Inaccurate:     	White=1     	Black=2      OK:         	White=19    	Black=22     Best:        	White=8     	Black=4      Strong:       	---       	Black=3      Brilliant:      	---       	Black=1} 0-1

[Event "Polish Ekstraliga 2024"]
[Site "Walbrzych"]
[Date "2024.10.08"]
[Round "2.17"]
[White "Jakubowski, Krzysztof"]
[Black "Rog, Bartlomiej"]
[Result "1-0"]
[ECO "A20"]
[WhiteElo "2443"]
[BlackElo "2257"]
[Annotator "RC"]
[PlyCount "57"]
[EventDate "2024.10.05"]
[EventType "team-tourn"]
[EventCountry "POL"]
[SourceTitle "playchess.com"]
[Source "ChessBase"]
[SourceQuality "1"]
[WhiteTeam "Raciborz"]
[BlackTeam "Gorzow Wlkp"]
[TimeControl "40/5400+30:1800+30"]

1. c4 {[%emt 0:00:04]} e5 {[%emt 0:00:07]} 2. e3 {[%emt 0:00:14]} Nf6 {[%emt 0:00:14]} 3. Nc3 {[%emt 0:00:14]} Bb4 {[%emt 0:00:09]} 4. Nge2 {[%emt 0:00:04]} O-O {[%emt 0:04:06]} 5. a3 {[%emt 0:00:15]} Bxc3 {[%emt 0:06:05]} 6. Nxc3 {[%emt 0:00:11]} Re8 {[%emt 0:00:59]} 7. Be2 {[%emt 0:05:03]} Nc6 {[%emt 0:11:39]} 8. O-O {[%emt 0:05:19]} d5 {[%emt 0:06:01]} 9. cxd5 {[%emt 0:00:28]} Nxd5 {[%emt 0:00:07]} 10. Qc2 {[%emt 0:01:27]} Nxc3 11. Qxc3 Qh4 {[%emt 0:16:23]} 12. b4 {[%emt 0:15:11]} Re6 {[%emt 0:01:33]} 13. g3 {[%emt 0:00:23]} Qh3 {[%emt 0:05:15]} 14. f3 {[%emt 0:05:42]} Rg6 {[%emt 0:12:02]} 15. Rf2 {[%emt 0:01:05]} a6 {[%emt 0:06:31]} 16. a4 {[%emt 0:15:12]} Qe6 {[%emt 0:08:10]} 17. Bb2 {[%emt 0:00:45]} Bd7 {[%emt 0:02:45]} 18. b5 {[%emt 0:10:09]} axb5 {[%emt 0:04:56]} 19. axb5 {[%emt 0:02:41]} Rxa1+ {[%emt 0:00:13]} 20. Bxa1 {[%emt 0:00:06]} Na7 {[%emt 0:01:00]} 21. Qxc7 {[%emt 0:16:13]} Nxb5 {[%emt 0:00:57]} 22. Qxb7 {[%emt 0:00:26]} Nd6 {[%emt 0:02:27]} 23. Qb8+ {[%emt 0:00:22]} Be8 {[%emt 0:00:26]} 24. Bd3 {[%emt 0:01:16]} Rg5 {[%emt 0:01:41]} 25. Bc3 {[%emt 0:02:36]} e4 {[%emt 0:00:48]} 26. fxe4 {[%emt 0:00:30]} h5 {[%emt 0:00:53]} 27. e5 {[%emt 0:02:25]} Nc8 {[%emt 0:01:07]} 28. Rf4 {[%emt 0:02:52]} Rg4 {[%emt 0:01:58]} 29. Bf5 {[%emt 0:00:59]} 1-0

[Event "Polish Ekstraliga 2024"]
[Site "Walbrzych"]
[Date "2024.10.08"]
[Round "2.18"]
[White "Siekanska, Maria"]
[Black "Narva, Mai"]
[Result "0-1"]
[ECO "A62"]
[WhiteElo "2149"]
[BlackElo "2415"]
[Annotator "RC"]
[PlyCount "70"]
[EventDate "2024.10.05"]
[EventType "team-tourn"]
[EventCountry "POL"]
[SourceTitle "playchess.com"]
[Source "ChessBase"]
[SourceQuality "1"]
[WhiteTeam "Gorzow Wlkp"]
[BlackTeam "Raciborz"]
[TimeControl "40/5400+30:1800+30"]

1. d4 {[%emt 0:00:01]} Nf6 {[%emt 0:00:11]} 2. c4 {[%emt 0:00:05]} e6 {[%emt 0:00:12]} 3. g3 {[%emt 0:00:04]} c5 {[%emt 0:00:21]} 4. d5 {[%emt 0:00:05]} exd5 {[%emt 0:00:08]} 5. cxd5 {[%emt 0:00:04]} d6 {[%emt 0:00:09]} 6. Nc3 {[%emt 0:00:06]} g6 {[%emt 0:00:17]} 7. Bg2 {[%emt 0:00:05]} Bg7 {[%emt 0:00:09]} 8. Nf3 {[%emt 0:00:05]} O-O {[%emt 0:00:09]} 9. O-O {[%emt 0:00:04]} Re8 {[%emt 0:00:10]} 10. Re1 {[%emt 0:00:13]} a6 {[%emt 0:01:59]} 11. a4 {[%emt 0:00:09]} Nbd7 {[%emt 0:00:41]} 12. Bf4 {[%emt 0:00:07]} Qc7 {[%emt 0:00:40]} 13. h3 {[%emt 0:00:21]} Rb8 {[%emt 0:05:35]} 14. e4 {[%emt 0:00:21]} Nh5 {[%emt 0:05:29]} 15. Bd2 {[%emt 0:05:29]} b5 {[%emt 0:09:03]} 16. axb5 {[%emt 0:02:33]} axb5 {[%emt 0:00:06]} 17. Bf1 {[%emt 0:01:33]} b4 18. Nb5 {[%emt 0:12:39]} Qb6 {[%emt 0:16:16]} 19. g4 {[%emt 0:05:26]} Nhf6 {[%emt 0:02:20]} 20. Qc2 {[%emt 0:01:38]} Bb7 {[%emt 0:21:49]} 21. Bf4 {[%emt 0:05:50]} Ne5 {[%emt 0:04:31]} 22. Nd2 {[%emt 0:07:28]} Nfd7 {[%emt 0:04:30]} 23. Bxe5 {[%emt 0:02:26]} Nxe5 {[%emt 0:01:56]} 24. f4 {[%emt 0:00:55]} c4+ {[%emt 0:01:21]} 25. Kh1 {[%emt 0:04:54]} Nd3 {[%emt 0:03:43]} 26. Bxd3 {[%emt 0:19:03]} cxd3 {[%emt 0:00:07]} 27. Qa4 {[%emt 0:00:39]} Qf2 {[%emt 0:03:28]} 28. Qxb4 {[%emt 0:01:27]} Bxd5 {[%emt 0:10:30]} 29. Rf1 {[%emt 0:08:58]} Rxe4 {[%emt 0:01:24]} 30. Nxe4 {[%emt 0:01:43]} Rxb5 {[%emt 0:00:32]} 31. Rxf2 {[%emt 0:05:53]} Rxb4 {[%emt 0:00:06]} 32. Kh2 {[%emt 0:00:20]} Bxe4 {[%emt 0:00:25]} 33. Re1 {[%emt 0:03:30]} Rxb2 {[%emt 0:01:33]} 34. Kg3 {[%emt 0:00:37]} Rxf2 {[%emt 0:00:21]} 35. Kxf2 {[%emt 0:00:05]} Bd4+ {[%emt 0:00:18]} 0-1

[Event "Polish Ekstraliga 2024"]
[Site "Walbrzych"]
[Date "2024.10.08"]
[Round "2.19"]
[White "Ponomariov, Ruslan"]
[Black "Sabuk, Piotr"]
[Result "1/2-1/2"]
[ECO "C55"]
[WhiteElo "2655"]
[BlackElo "2402"]
[Annotator "TA"]
[PlyCount "63"]
[EventDate "2024.10.05"]
[EventType "team-tourn"]
[EventCountry "POL"]
[SourceTitle "playchess.com"]
[Source "ChessBase"]
[SourceQuality "1"]
[WhiteTeam "Katowice"]
[BlackTeam "Wisznia Mala"]
[TimeControl "40/5400+30:1800+30"]

{[%evp 10,63,12,10,18,22,19,-35,29,31,17,26,12,0,-7,0,0,0,0,0,0,-13,0,-45,-43,-43,-25,-62,-69,-55,-61,-78,-83,-81,-34,-42,-43,-42,-27,-51,-50,-49,-65,-48,0,0,0,0,0,0,0,0,0,0,0,0]} 1. e4 {[%emt 0:00:03]} e5 {[%emt 0:00:10]} 2. Nf3 {[%emt 0:00:10]} Nc6 {[%emt 0:00:07]} 3. Bc4 {[%emt 0:00:16]} Nf6 {[%emt 0:00:16]} 4. d3 {[%emt 0:00:15]} Be7 {[%emt 0:00:25]} 5. Nc3 {[%emt 0:00:50]} d6 {[%emt 0:02:14]} 6. a3 {[%emt 0:00:48]} O-O {[%emt 0:04:54]} 7. Be3 {[%emt 0:01:17]} Be6 {[%emt 0:03:35]} 8. Ng5 {[%emt 0:07:23]} (8. Nd5 $11) 8... d5 {[%emt 0:05:27]} (8... Bg4 $15 9. Qd2 Nd4) 9. exd5 $11 {[%emt 0:10:57]} Bxd5 {[%emt 0:00:18]} 10. Nxd5 {[%emt 0:01:20]} Nxd5 {[%emt 0:00:12]} 11. h4 {[%emt 0:16:13]} Nxe3 {[%emt 0:11:04]} 12. fxe3 {[%emt 0:00:30] [#] Droht Qh5 und aus.} Bxg5 {[%emt 0:07:48]} 13. hxg5 {[%emt 0:00:29]} Qxg5 {[%emt 0:02:57]} 14. Qf3 {[%emt 0:01:25]} g6 {[%emt 0:09:14][%cal Oe5e4]} 15. O-O-O {[%emt 0:03:02]} h5 {[%emt 0:02:47]} 16. Rh3 {[%emt 0:07:26] [#] Zielt auf Rg3 ab.} (16. Rdf1 $5) 16... e4 $1 {[%emt 0:16:32]} 17. Qxe4 {[%emt 0:08:30]} (17. Qf4 Qxf4) 17... Rae8 {[%emt 0:00:16][%cal Ba8e8,Be8e2,Be2c2][%mdl 32] Wehrt d4 ab} 18. Qf4 {[%emt 0:03:26]} Qxf4 {[%emt 0:01:38]} 19. exf4 {[%emt 0:00:28]} Nd4 {[%emt 0:01:03] Es drohte Bb5} 20. Rf1 {[%emt 0:07:06]} Re2 {[%emt 0:05:44]} 21. c3 {[%emt 0:01:22]} Nf5 {[%emt 0:03:40]} ({Vorzuziehen ist} 21... b5 $17 22. cxd4 bxc4 23. dxc4 Rxg2) 22. Bd5 $15 {[%emt 0:02:21][%cal Od5f3]} Ne3 {[%emt 0:01:02]} 23. Bf3 {[%emt 0:00:57]} Rc2+ {[%emt 0:00:38]} 24. Kb1 {[%emt 0:00:05]} Rd2 {[%emt 0:07:29]} 25. Rg1 {[%emt 0:02:05]} Re8 {[%emt 0:01:17]} (25... Rxd3 $2 26. Be2 Nxg2 (26... Rfd8 $2 27. Bxd3 Rxd3 28. Re1 $18) 27. Rxd3 $18 (27. Bxd3 Nxf4 28. Rf3 Nxd3 $18)) 26. Bxb7 {[%emt 0:04:34]} Nd1 {[%emt 0:05:55]} (26... Ng4 $15 {ist überlegen.} 27. Be4 Nf2) 27. Kc1 $1 $11 {[%emt 0:01:18][%csl LRd1,LRd2] Die Stellung ist ausgeglichen.} Ree2 {[%emt 0:02:17] Und ...Nf2 würde nun gewinnen.} 28. Bf3 {[%emt 0:00:21][%cal Of3e2]} (28. Rxd1 $2 {zu gefräßig.} Rc2+ (28... Rxb2 29. Re1 $11) 29. Kb1 Rxb2+ 30. Ka1 Ra2+ (30... Rxb7 $2 31. Rg1 $19) 31. Kb1 Rab2+ (31... Rxa3 32. Bd5 $16) 32. Ka1 Rxb7 $19) 28... Rc2+ {[%emt 0:00:53]} 29. Kxd1 {[%emt 0:00:04]} Rcd2+ {[%emt 0:00:09]} 30. Kc1 {[%emt 0:00:05]} Rc2+ {[%emt 0:00:05]} 31. Kd1 {[%emt 0:00:04]} Rcd2+ {[%emt 0:00:06]} 32. Kc1 {Gewichteter Fehlerwert: Weiß=0.12 (sehr präzise) /Schwarz=0.10 (sehr präzise) .  Fehler:       	Weiß=1     	Schwarz=3     Ungenau:       	Weiß=2     	---        OK:         	Weiß=11    	Schwarz=13    Bester:       	Weiß=3     	Schwarz=2} 1/2-1/2